fUST/lending_fUST_20250717
["ID","MTS","AMOUNT","RATE_DAILY","PERIOD"]
[372732388,1752748244520,-521.29,0.00018645,2]
[372732389,1752748244531,-843.3,0.00018645,2]
[372732391,1752748244541,-460.0,0.00018645,2]
[372732393,1752748244550,-460.0,0.00018645,2]
[372732395,1752748244560,-485.68,0.00018645,2]
[372732397,1752748244569,-460.0,0.00018645,2]
[372732399,1752748244578,-460.0,0.00018645,2]
[372732401,1752748244588,-614.22,0.00018645,2]
[372732403,1752748244597,-460.0,0.00018645,2]
[372732405,1752748244607,-460.0,0.00018645,2]
[372732407,1752748244617,-460.0,0.00018645,2]
[372732409,1752748244626,-460.0,0.00018645,2]
[372732411,1752748244637,-460.0,0.00018645,2]
[372732413,1752748244646,-534.51,0.00018645,2]
[372732415,1752748244655,-460.0,0.00018646,2]
[372732417,1752748244665,-460.0,0.00018646,2]
[372732419,1752748244675,-460.0,0.00018646,2]
[372732421,1752748244684,-3796.69,0.00018646,2]
[372732423,1752748244693,-460.0,0.00018646,2]
[372732425,1752748244702,-460.0,0.00018646,2]
[372732427,1752748244713,-1252.7,0.00018646,2]
[372732429,1752748244723,-531.15,0.00018646,2]
[372732431,1752748244732,-363.654998,0.00018646,2]
[372732433,1752748244741,-1517.43,0.00018646,2]
[372732435,1752748244752,-460.0,0.00018646,2]
[372732438,1752748244771,-460.0,0.00018646,2]
[372732439,1752748244781,-1512.69,0.00018647,2]
[372732441,1752748244791,-539.39,0.0001865,2]
[372732443,1752748244800,-541.25,0.0001865,2]
[372732445,1752748244809,-566.44,0.0001865,2]
[372732448,1752748244819,-460.0,0.0001865,2]
[372732450,1752748244829,-475.56,0.0001865,2]
[372732452,1752748244839,-460.0,0.0001865,2]
[372732454,1752748244848,-1182.36,0.0001865,2]
[372732456,1752748244858,-712.85,0.0001865,2]
[372732458,1752748244867,-2275.09,0.0001865,2]
[372732460,1752748244877,-460.0,0.0001865,2]
[372732462,1752748244886,-1525.12,0.0001865,2]
[372732464,1752748244896,-644.59,0.0001865,2]
[372732466,1752748244905,-4545.3,0.0001865,2]
[372732468,1752748244915,-460.0,0.0001865,2]
[372732470,1752748244925,-1352.58,0.0001865,2]
[372732471,1752748244934,-460.0,0.0001865,2]
[372732474,1752748244944,-460.0,0.0001865,2]
[372732476,1752748244953,-221.95,0.00018653,2]
[372732478,1752748244963,-460.0,0.00018653,2]
[372732480,1752748244972,-605.4,0.00018653,2]
[372732481,1752748244982,-16546.21594871,0.00018728,2]
[372732483,1752748244991,-500.0,0.000188,2]
[372732485,1752748245001,-432.0133555,0.00018872,2]
[372732487,1752748245010,-3878.75282987,0.000189,2]
[372732489,1752748245020,-303.00000303,0.000189,2]
[372732491,1752748245031,-460.0,0.00018913,2]
[372732494,1752748245042,-460.0,0.00018915,2]
[372732496,1752748245051,-460.0,0.00018915,2]
[372732497,1752748245060,-1304.83,0.00018915,2]
[372732499,1752748245071,-3403.72,0.00018917,2]
[372732501,1752748245080,-460.0,0.00018917,2]
[372732504,1752748245090,-2746.61,0.00018917,2]
[372732506,1752748245100,-2633.16,0.00018917,2]
[372732508,1752748245109,-598.18,0.00018917,2]
[372732510,1752748245119,-460.0,0.00018917,2]
[372732511,1752748245128,-460.0,0.00018917,2]
[372732514,1752748245138,-460.0,0.00018917,2]
[372732515,1752748245147,-460.0,0.00018917,2]
[372732517,1752748245156,-1025.92,0.00018917,2]
[372732520,1752748245166,-1168.37,0.00018917,2]
[372732522,1752748245175,-533.73,0.00018917,2]
[372732524,1752748245185,-460.0,0.00018917,2]
[372732526,1752748245195,-375.90191781,0.00018918,2]
[372732528,1752748245205,-554.26,0.00018919,2]
[372732544,1752748245346,-460.0,0.00018919,2]
[372732546,1752748245357,-460.0,0.00018919,2]
[372732548,1752748245367,-460.0,0.00018919,2]
[372732550,1752748245377,-647.57,0.00018919,2]
[372732551,1752748245387,-543.85,0.00018919,2]
[372732552,1752748245397,-521.29,0.00018919,2]
[372732553,1752748245406,-843.3,0.00018919,2]
[372732554,1752748245415,-460.0,0.00018919,2]
[372732555,1752748245425,-460.0,0.00018919,2]
[372732556,1752748245434,-485.68,0.00018919,2]
[372732557,1752748245443,-462.87,0.00018919,2]
[372732558,1752748245452,-460.0,0.00018919,2]
[372732559,1752748245461,-614.22,0.00018919,2]
[372732560,1752748245470,-460.0,0.00018919,2]
[372732561,1752748245479,-460.0,0.00018919,2]
[372732562,1752748245488,-600.78457858,0.00018919,2]
[372732563,1752748245498,-460.0,0.00018919,2]
[372732564,1752748245508,-460.0,0.00018919,2]
[372732565,1752748245517,-534.51,0.00018919,2]
[372732566,1752748245526,-460.0,0.0001892,2]
[372732567,1752748245536,-460.0,0.0001892,2]
[372732568,1752748245547,-460.0,0.0001892,2]
[372732569,1752748245556,-3796.69,0.0001892,2]
[372732570,1752748245565,-460.0,0.0001892,2]
[372732571,1752748245575,-460.0,0.0001892,2]
[372732572,1752748245584,-1252.7,0.0001892,2]
[372732573,1752748245593,-531.15,0.0001892,2]
[372732574,1752748245601,-1517.43,0.0001892,2]
[372732575,1752748245609,-460.0,0.0001892,2]
[372732576,1752748245618,-1512.69,0.00018921,2]
[372732577,1752748245627,-539.39,0.00018924,2]
[372732578,1752748245635,-541.25,0.00018924,2]
[372732579,1752748245644,-566.44,0.00018924,2]
[372732580,1752748245653,-460.0,0.00018924,2]
[372732581,1752748245662,-475.56,0.00018924,2]
[372732582,1752748245671,-460.0,0.00018924,2]
[372732583,1752748245679,-1182.36,0.00018924,2]
[372732584,1752748245688,-712.85,0.00018924,2]
[372732585,1752748245696,-2275.09,0.00018924,2]
[372732586,1752748245706,-460.0,0.00018924,2]
[372732588,1752748245715,-1525.12,0.00018924,2]
[372732590,1752748245724,-644.59,0.00018924,2]
[372732592,1752748245734,-4545.3,0.00018924,2]
[372732594,1752748245743,-460.0,0.00018924,2]
[372732596,1752748245753,-1352.58,0.00018924,2]
[372732598,1752748245762,-517.48178713,0.00018924,2]
[372732600,1752748245772,-247.2,0.00018927,2]
[372732602,1752748245783,-1500.0,0.00018968,2]
[372732604,1752748245793,-1500.0,0.00018968,2]
[372732606,1752748245802,-1500.0,0.00018968,2]
[372732608,1752748245812,-2646.45228207,0.00018986,2]
[372732610,1752748245822,-5954.51763466,0.00018986,2]
[372732612,1752748245832,-10575.22331916,0.00018986,2]
[372732614,1752748245842,-905.17226633,0.00019,2]
[372732616,1752748245851,-16546.21594871,0.00019003,2]
[372732618,1752748245861,-303.00000303,0.00019089,2]
[372732620,1752748245872,-500.0,0.00019107,2]
[372732623,1752748245882,-500.0,0.00019178,2]
[372732625,1752748245891,-519.88,0.00019178,2]
[372732627,1752748245901,-5000.0,0.00019178,2]
[372732629,1752748245911,-889.78529278,0.00019178,2]
[372732630,1752748245920,-700.548264,0.00019178,2]
[372732633,1752748245931,-666.0,0.00019178,2]
[372732636,1752748245940,-995.78,0.00019184,3]
[372732638,1752748245950,-460.0,0.00019187,2]
[372732640,1752748245959,-497.9,0.00019188,3]
[372732642,1752748245969,-460.0,0.00019189,2]
[372732643,1752748245979,-460.0,0.00019189,2]
[372732646,1752748245988,-1304.83,0.00019189,2]
[372732648,1752748245998,-6310.28231032,0.00019191,2]
[372732651,1752748246007,-3403.72,0.00019191,2]
[372732653,1752748246017,-460.0,0.00019191,2]
[372732655,1752748246027,-2746.61,0.00019191,2]
[372732657,1752748246037,-2633.16,0.00019191,2]
[372732659,1752748246047,-598.18,0.00019191,2]
[372732661,1752748246057,-460.0,0.00019191,2]
[372732663,1752748246067,-460.0,0.00019191,2]
[372732665,1752748246076,-460.0,0.00019191,2]
[372732667,1752748246085,-460.0,0.00019191,2]
[372732668,1752748246095,-1025.92,0.00019191,2]
[372732670,1752748246106,-1168.37,0.00019191,2]
[372732672,1752748246115,-533.73,0.00019191,2]
[372732674,1752748246124,-460.0,0.00019191,2]
[372732676,1752748246134,-490.68,0.00019193,2]
[372732678,1752748246143,-342.06152639,0.00019193,2]
[372732680,1752748246154,-460.0,0.00019193,2]
[372732682,1752748246164,-647.57,0.00019193,2]
[372732685,1752748246174,-543.85,0.00019193,2]
[372732687,1752748246184,-521.29,0.00019193,2]
[372732688,1752748246196,-843.3,0.00019193,2]
[372732690,1752748246206,-460.0,0.00019193,2]
[372732693,1752748246215,-460.0,0.00019193,2]
[372732695,1752748246224,-485.68,0.00019193,2]
[372732697,1752748246234,-460.0,0.00019193,2]
[372732698,1752748246243,-614.22,0.00019193,2]
[372732701,1752748246253,-362.1091208,0.00019193,2]
[372732703,1752748246263,-460.0,0.00019193,2]
[372732705,1752748246273,-460.0,0.00019193,2]
[372732707,1752748246283,-534.51,0.00019193,2]
[372732709,1752748246293,-460.0,0.00019193,2]
[372732711,1752748246303,-246.45,0.00019194,2]
[372732713,1752748246318,-460.0,0.00019194,2]
[372732715,1752748246327,-460.0,0.00019194,2]
[372732717,1752748246336,-3796.69,0.00019194,2]
[372732719,1752748246346,-460.0,0.00019194,2]
[372732721,1752748246356,-460.0,0.00019194,2]
[372732723,1752748246365,-1252.7,0.00019194,2]
[372732725,1752748246375,-531.15,0.00019194,2]
[372732727,1752748246384,-1517.43,0.00019194,2]
[372732729,1752748246393,-460.0,0.00019194,2]
[372732731,1752748246403,-1512.69,0.00019195,2]
[372732733,1752748246412,-539.39,0.00019198,2]
[372732735,1752748246422,-541.25,0.00019198,2]
[372732737,1752748246432,-566.44,0.00019198,2]
[372732739,1752748246441,-460.0,0.00019198,2]
[372732741,1752748246449,-475.56,0.00019198,2]
[372732743,1752748246459,-460.0,0.00019198,2]
[372732745,1752748246468,-1182.36,0.00019198,2]
[372732747,1752748246477,-712.85,0.00019198,2]
[372732749,1752748246487,-2275.09,0.00019198,2]
[372732750,1752748246496,-460.0,0.00019198,2]
[372732752,1752748246506,-1525.12,0.00019198,2]
[372732755,1752748246515,-644.59,0.00019198,2]
[372732757,1752748246525,-4545.3,0.00019198,2]
[372732759,1752748246535,-460.0,0.00019198,2]
[372732761,1752748246544,-1352.58,0.00019198,2]
[372732763,1752748246554,-303.00000303,0.00019278,2]
[372732765,1752748246564,-16546.21594871,0.00019279,2]
[372732767,1752748246574,-2116.71091693,0.00019295,2]
[372732769,1752748246583,-600.0,0.00019313,2]
[372732771,1752748246593,-100000.0,0.00019329,2]
[372732773,1752748246603,-482.75735108,0.00019348,2]
[372732775,1752748246613,-501.97751132,0.00019373,2]
[372732777,1752748246622,-500.0,0.00019373,2]
[372732779,1752748246631,-501.89293347,0.00019373,2]
[372732781,1752748246641,-160.0,0.00019424,2]
[372732783,1752748246650,-160.0,0.00019424,2]
[372732785,1752748246659,-476.16111942,0.00019424,2]
[372732787,1752748246668,-230.85589339,0.00019424,2]
[372732789,1752748246678,-160.0,0.00019424,2]
[372732791,1752748246688,-160.0,0.00019424,2]
[372732793,1752748246697,-160.0,0.00019424,2]
[372732795,1752748246707,-215.59244943,0.00019424,2]
[372732797,1752748246717,-160.0,0.00019424,2]
[372732799,1752748246726,-214.44804168,0.00019424,2]
[372732801,1752748246735,-160.0,0.00019424,2]
[372732803,1752748246745,-839.15451687,0.00019424,2]
[372732805,1752748246755,-525.67742785,0.00019424,2]
[372732807,1752748246766,-12607.95677342,0.00019424,2]
[372732809,1752748246775,-160.0,0.00019431,2]
[372732811,1752748246784,-160.0,0.00019431,2]
[372732813,1752748246793,-420.0,0.00019444,2]
[372732815,1752748246803,-297.0,0.00019444,2]
[372732817,1752748246813,-179.9640072,0.00019447,2]
[372732819,1752748246823,-546.98,0.00019463,2]
[372732821,1752748246832,-460.0,0.00019463,2]
[372732823,1752748246842,-1304.83,0.00019463,2]
[372732825,1752748246853,-3403.72,0.00019465,2]
[372732827,1752748246862,-460.0,0.00019465,2]
[372732829,1752748246871,-2746.61,0.00019465,2]
[372732831,1752748246880,-2633.16,0.00019465,2]
[372732833,1752748246890,-598.18,0.00019465,2]
[372732835,1752748246899,-460.0,0.00019465,2]
[372732837,1752748246909,-460.0,0.00019465,2]
[372732839,1752748246919,-460.0,0.00019465,2]
[372732841,1752748246928,-460.0,0.00019465,2]
[372732843,1752748246937,-1025.92,0.00019465,2]
[372732845,1752748246947,-1168.37,0.00019465,2]
[372732847,1752748246958,-533.73,0.00019465,2]
[372732849,1752748246969,-460.0,0.00019465,2]
[372732851,1752748246978,-460.0,0.00019467,2]
[372732853,1752748246988,-647.57,0.00019467,2]
[372732855,1752748246997,-543.85,0.00019467,2]
[372732857,1752748247006,-521.29,0.00019467,2]
[372732859,1752748247015,-843.3,0.00019467,2]
[372732861,1752748247025,-303.00000303,0.00019467,2]
[372732863,1752748247034,-460.0,0.00019467,2]
[372732865,1752748247043,-460.0,0.00019467,2]
[372732867,1752748247053,-485.68,0.00019467,2]
[372732869,1752748247062,-460.0,0.00019467,2]
[372732871,1752748247072,-614.22,0.00019467,2]
[372732873,1752748247081,-460.0,0.00019467,2]
[372732875,1752748247091,-460.0,0.00019467,2]
[372732877,1752748247101,-534.51,0.00019467,2]
[372732879,1752748247110,-460.0,0.00019467,2]
[372732881,1752748247119,-460.0,0.00019468,2]
[372732883,1752748247128,-460.0,0.00019468,2]
[372732885,1752748247137,-3796.69,0.00019468,2]
[372732887,1752748247146,-460.0,0.00019468,2]
[372732889,1752748247155,-460.0,0.00019468,2]
[372732891,1752748247164,-1252.7,0.00019468,2]
[372732893,1752748247174,-531.15,0.00019468,2]
[372732895,1752748247183,-1517.43,0.00019468,2]
[372732897,1752748247193,-460.0,0.00019468,2]
[372732899,1752748247202,-1512.69,0.00019469,2]
[372732901,1752748247211,-539.39,0.00019472,2]
[372732903,1752748247220,-541.25,0.00019472,2]
[372732905,1752748247229,-566.44,0.00019472,2]
[372732907,1752748247238,-460.0,0.00019472,2]
[372732909,1752748247247,-475.56,0.00019472,2]
[372732911,1752748247256,-475.78,0.00019472,2]
[372732912,1752748247265,-1182.36,0.00019472,2]
[372732914,1752748247275,-712.85,0.00019472,2]
[372732917,1752748247284,-2275.09,0.00019472,2]
[372732918,1752748247293,-460.0,0.00019472,2]
[372732921,1752748247303,-1525.12,0.00019472,2]
[372732922,1752748247313,-644.59,0.00019472,2]
[372732925,1752748247324,-4545.3,0.00019472,2]
[372732927,1752748247333,-396.27,0.00019472,2]
[372732928,1752748247343,-1352.58,0.00019472,2]
[372732931,1752748247352,-2000.0,0.00019516,2]
[372732933,1752748247362,-798.29602581,0.00019516,2]
[372732935,1752748247371,-2000.0,0.00019516,2]
[372732937,1752748247380,-1680.0,0.00019539,2]
[372732939,1752748247390,-16546.21594871,0.00019555,2]
[372732941,1752748247401,-800.0,0.00019577,2]
[372732942,1752748247410,-404.66578538,0.00019656,2]
[372732944,1752748247419,-151.0,0.00019656,2]
[372732946,1752748247428,-25000.0,0.00019656,2]
[372732948,1752748247438,-151.0,0.00019656,2]
[372732951,1752748247448,-151.0,0.00019656,2]
[372732953,1752748247457,-151.0,0.00019656,2]
[372732954,1752748247467,-151.0,0.00019656,2]
[372732956,1752748247476,-151.0,0.00019656,2]
[372732959,1752748247485,-151.0,0.00019656,2]
[372732961,1752748247495,-151.0,0.00019656,2]
[372732963,1752748247504,-207.4,0.00019656,2]
[372732965,1752748247513,-151.0,0.00019656,2]
[372732966,1752748247523,-151.0,0.00019656,2]
[372732968,1752748247532,-151.0,0.00019656,2]
[372732970,1752748247542,-151.0,0.00019656,2]
[372732972,1752748247551,-151.0,0.00019656,2]
[372732974,1752748247561,-159.14388846,0.00019656,2]
[372732977,1752748247571,-151.0,0.00019656,2]
[372732979,1752748247581,-151.0,0.00019656,2]
[372732981,1752748247591,-151.0,0.00019656,2]
[372732983,1752748247600,-151.0,0.00019656,2]
[372732985,1752748247609,-151.0,0.00019656,2]
[372732987,1752748247619,-151.0,0.00019656,2]
[372732989,1752748247629,-151.0,0.00019656,2]
[372732991,1752748247639,-151.0,0.00019656,2]
[372732993,1752748247648,-151.0,0.00019656,2]
[372732995,1752748247659,-151.0,0.00019656,2]
[372732997,1752748247669,-151.0,0.00019656,2]
[372732998,1752748247680,-151.0,0.00019656,2]
[372733000,1752748247689,-151.0,0.00019656,2]
[372733003,1752748247701,-151.0,0.00019656,2]
[372733005,1752748247710,-460.0,0.00019737,2]
[372733007,1752748247720,-1304.83,0.00019737,2]
[372733009,1752748247730,-3403.72,0.00019739,2]
[372733011,1752748247739,-449.08235751,0.00019739,2]
[372733013,1752748247748,-2746.61,0.00019739,2]
[372733015,1752748247758,-2633.16,0.00019739,2]
[372733017,1752748247767,-598.18,0.00019739,2]
[372733019,1752748247777,-460.0,0.00019739,2]
[372733021,1752748247789,-460.0,0.00019739,2]
[372733023,1752748247798,-460.0,0.00019739,2]
[372733025,1752748247807,-314.90950628,0.00019739,2]
[372733027,1752748247817,-1025.92,0.00019739,2]
[372733029,1752748247827,-1168.37,0.00019739,2]
[372733031,1752748247836,-533.73,0.00019739,2]
[372733033,1752748247846,-460.0,0.00019739,2]
[372733035,1752748247855,-460.0,0.00019741,2]
[372733037,1752748247865,-647.57,0.00019741,2]
[372733039,1752748247874,-543.85,0.00019741,2]
[372733041,1752748247884,-521.29,0.00019741,2]
[372733042,1752748247893,-843.3,0.00019741,2]
[372733044,1752748247903,-460.0,0.00019741,2]
[372733046,1752748247912,-460.0,0.00019741,2]
[372733049,1752748247922,-485.68,0.00019741,2]
[372733051,1752748247931,-234.21922923,0.00019741,2]
[372733053,1752748247941,-614.22,0.00019741,2]
[372733055,1752748247950,-460.0,0.00019741,2]
[372733057,1752748247959,-522.35729271,0.00019741,2]
[372733059,1752748247970,-534.51,0.00019741,2]
[372733061,1752748247980,-460.0,0.00019741,2]
[372733063,1752748247989,-460.0,0.00019742,2]
[372733064,1752748247998,-460.0,0.00019742,2]
[372733066,1752748248007,-3796.69,0.00019742,2]
[372733068,1752748248017,-460.0,0.00019742,2]
[372733070,1752748248028,-1252.7,0.00019742,2]
[372733072,1752748248039,-531.15,0.00019742,2]
[372733074,1752748248049,-1517.43,0.00019742,2]
[372733076,1752748248059,-460.0,0.00019742,2]
[372733078,1752748248069,-1512.69,0.00019743,2]
[372733080,1752748248078,-539.39,0.00019746,2]
[372733082,1752748248088,-541.25,0.00019746,2]
[372733084,1752748248098,-566.44,0.00019746,2]
[372733087,1752748248108,-460.0,0.00019746,2]
[372733088,1752748248118,-475.56,0.00019746,2]
[372733091,1752748248127,-1182.36,0.00019746,2]
[372733093,1752748248137,-712.85,0.00019746,2]
[372733095,1752748248147,-2275.09,0.00019746,2]
[372733097,1752748248156,-460.0,0.00019746,2]
[372733099,1752748248165,-1525.12,0.00019746,2]
[372733101,1752748248175,-644.59,0.00019746,2]
[372733102,1752748248184,-4545.3,0.00019746,2]
[372733105,1752748248194,-1352.58,0.00019746,2]
[372733107,1752748248203,-535.78515,0.00019755,2]
[372733109,1752748248213,-99451.12677478,0.000198,2]
[372733111,1752748248223,-16546.21594871,0.00019831,2]
[372733113,1752748248233,-336.9,0.00019832,3]
[372733115,1752748248242,-160.0,0.00019883,2]
[372733117,1752748248251,-7993.76570528,0.000199,2]
[372733119,1752748248261,-1000.0,0.00019921,2]
[372733121,1752748248270,-14300.23978458,0.0002,2]
[372733123,1752748248279,-1304.83,0.00020011,2]
[372733125,1752748248289,-3403.72,0.00020013,2]
[372733127,1752748248298,-2746.61,0.00020013,2]
[372733129,1752748248308,-2633.16,0.00020013,2]
[372733131,1752748248323,-598.18,0.00020013,2]
[372733133,1752748248332,-460.0,0.00020013,2]
[372733135,1752748248342,-460.0,0.00020013,2]
[372733137,1752748248351,-460.0,0.00020013,2]
[372733139,1752748248363,-1025.92,0.00020013,2]
[372733141,1752748248373,-1168.37,0.00020013,2]
[372733143,1752748248382,-533.73,0.00020013,2]
[372733145,1752748248393,-460.0,0.00020013,2]
[372733147,1752748248403,-460.0,0.00020015,2]
[372733149,1752748248412,-647.57,0.00020015,2]
[372733163,1752748248541,-543.85,0.00020015,2]
[372733165,1752748248552,-521.29,0.00020015,2]
[372733167,1752748248561,-843.3,0.00020015,2]
[372733169,1752748248571,-460.0,0.00020015,2]
[372733171,1752748248581,-484.07,0.00020015,2]
[372733173,1752748248591,-485.68,0.00020015,2]
[372733175,1752748248600,-614.22,0.00020015,2]
[372733177,1752748248609,-460.0,0.00020015,2]
[372733179,1752748248619,-534.51,0.00020015,2]
[372733181,1752748248629,-460.0,0.00020015,2]
[372733183,1752748248638,-460.0,0.00020016,2]
[372733185,1752748248648,-460.0,0.00020016,2]
[372733187,1752748248657,-3796.69,0.00020016,2]
[372733189,1752748248667,-460.0,0.00020016,2]
[372733191,1752748248677,-1252.7,0.00020016,2]
[372733193,1752748248687,-531.15,0.00020016,2]
[372733195,1752748248696,-1517.43,0.00020016,2]
[372733197,1752748248706,-460.0,0.00020016,2]
[372733199,1752748248715,-1512.69,0.00020017,2]
[372733201,1752748248724,-539.39,0.0002002,2]
[372733203,1752748248734,-541.25,0.0002002,2]
[372733205,1752748248744,-566.44,0.0002002,2]
[372733207,1752748248754,-460.0,0.0002002,2]
[372733209,1752748248763,-475.56,0.0002002,2]
[372733211,1752748248772,-1182.36,0.0002002,2]
[372733213,1752748248782,-712.85,0.0002002,2]
[372733215,1752748248792,-2275.09,0.0002002,2]
[372733217,1752748248802,-460.0,0.0002002,2]
[372733219,1752748248812,-1525.12,0.0002002,2]
[372733221,1752748248822,-644.59,0.0002002,2]
[372733223,1752748248831,-4545.3,0.0002002,2]
[372733225,1752748248841,-1352.58,0.0002002,2]
[372733227,1752748248852,-432.0133555,0.00020026,2]
[372733229,1752748248862,-2500.0,0.00020064,2]
[372733231,1752748248872,-4322.0,0.00020078,2]
[372733233,1752748248882,-16546.21594871,0.00020107,2]
[372733235,1752748248892,-500.0,0.00020113,2]
[372733237,1752748248902,-429.2412091,0.00020164,2]
[372733239,1752748248912,-240.8452718,0.00020164,2]
[372733241,1752748248921,-500.0,0.0002017,2]
[372733243,1752748248931,-500.0,0.0002017,2]
[372733245,1752748248941,-500.0,0.0002017,2]
[372733247,1752748248951,-500.0,0.0002017,2]
[372733249,1752748248960,-463.34381087,0.0002017,2]
[372733251,1752748248970,-758.677334,0.00020187,2]
[372733253,1752748248979,-858.1897352,0.00020192,2]
[372733255,1752748248989,-212.0,0.00020231,2]
[372733257,1752748249000,-212.0,0.00020247,2]
[372733259,1752748249009,-429.2412091,0.00020282,2]
[372733261,1752748249019,-336.9,0.00020284,3]
[372733263,1752748249030,-1304.83,0.00020285,2]
[372733265,1752748249040,-3403.72,0.00020287,2]
[372733267,1752748249050,-2746.61,0.00020287,2]
[372733269,1752748249061,-2633.16,0.00020287,2]
[372733271,1752748249072,-598.18,0.00020287,2]
[372733273,1752748249082,-460.0,0.00020287,2]
[372733275,1752748249091,-460.0,0.00020287,2]
[372733277,1752748249101,-460.0,0.00020287,2]
[372733279,1752748249111,-1025.92,0.00020287,2]
[372733281,1752748249120,-1168.37,0.00020287,2]
[372733283,1752748249130,-533.73,0.00020287,2]
[372733285,1752748249139,-460.0,0.00020287,2]
[372733287,1752748249149,-460.0,0.00020289,2]
[372733289,1752748249158,-647.57,0.00020289,2]
[372733291,1752748249168,-543.85,0.00020289,2]
[372733293,1752748249177,-521.29,0.00020289,2]
[372733295,1752748249187,-843.3,0.00020289,2]
[372733297,1752748249196,-460.0,0.00020289,2]
[372733299,1752748249206,-485.68,0.00020289,2]
[372733301,1752748249215,-614.22,0.00020289,2]
[372733303,1752748249224,-460.0,0.00020289,2]
[372733305,1752748249234,-534.51,0.00020289,2]
[372733307,1752748249243,-460.0,0.00020289,2]
[372733309,1752748249253,-460.0,0.0002029,2]
[372733311,1752748249262,-3796.69,0.0002029,2]
[372733313,1752748249271,-460.0,0.0002029,2]
[372733315,1752748249280,-1252.7,0.0002029,2]
[372733317,1752748249291,-531.15,0.0002029,2]
[372733319,1752748249302,-1517.43,0.0002029,2]
[372733321,1752748249312,-460.0,0.0002029,2]
[372733323,1752748249324,-1578.46,0.00020291,2]
[372733325,1752748249334,-1512.69,0.00020291,2]
[372733327,1752748249343,-539.39,0.00020294,2]
[372733329,1752748249353,-541.25,0.00020294,2]
[372733331,1752748249363,-566.44,0.00020294,2]
[372733333,1752748249372,-460.0,0.00020294,2]
[372733335,1752748249382,-475.56,0.00020294,2]
[372733337,1752748249392,-1182.36,0.00020294,2]
[372733339,1752748249402,-712.85,0.00020294,2]
[372733341,1752748249411,-2275.09,0.00020294,2]
[372733343,1752748249420,-460.0,0.00020294,2]
[372733345,1752748249430,-1525.12,0.00020294,2]
[372733347,1752748249440,-644.59,0.00020294,2]
[372733349,1752748249449,-4545.3,0.00020294,2]
[372733351,1752748249459,-1352.58,0.00020294,2]
[372733353,1752748249469,-2116.71091693,0.00020313,2]
[372733355,1752748249479,-212.0,0.00020323,2]
[372733357,1752748249489,-500.0,0.00020336,2]
[372733359,1752748249498,-500.0,0.00020336,2]
[372733361,1752748249508,-500.0,0.00020336,2]
[372733363,1752748249517,-500.0,0.00020336,2]
[372733365,1752748249526,-500.0,0.00020336,2]
[372733367,1752748249536,-500.0,0.00020336,2]
[372733369,1752748249545,-500.0,0.00020336,2]
[372733371,1752748249554,-500.0,0.00020336,2]
[372733373,1752748249563,-500.0,0.00020336,2]
[372733375,1752748249573,-500.0,0.00020336,2]
[372733377,1752748249583,-500.0,0.00020336,2]
[372733379,1752748249592,-500.0,0.00020336,2]